Cogmind - Beta 15 @@@ ROGUE MODE // 2025.06.21 @ 12:41:42 Player: Allie Result: Destroyed by Y-45 Defender with Beam Rifle Performance ------------- Evolutions (2) 1000 Regions Visited (5) 1000 Robots Destroyed (28) 140 Value Destroyed (907) 907 Prototype IDs (0) 0 Alien Tech Used (0) 0 Bonus (0) 0 TOTAL SCORE: 3047 Bonus ------- None Cogmind --------- Core Integrity 0/550 Matter 300/300 Energy 99/100 System Corruption 0% Temperature Cool (9) Movement Core (2400) Ox47 Location -8/Materials Parts ------- > --- POWER (2) -------- (None) > --- PROPULSION (4) --- (None) > --- UTILITY (3) ------ Cargo Storage Unit ECM Suite > --- WEAPON (2) ------- (None) > --- INVENTORY (30) --- Medium Battery (150) Medium Battery (150) Medium Battery (150) Medium Matter Pod (100) Hardlight Generator Peak State ------------ > --- POWER ------------ Hybrid Deuterium Engine > --- PROPULSION ------- Aluminum Leg Aluminum Leg Aluminum Leg Aluminum Leg > --- UTILITY ---------- Cargo Storage Unit ECM Suite > --- WEAPON ----------- Medium Laser Light Assault Rifle > --- INVENTORY -------- Light Treads Medium Battery Medium Battery Medium Battery Medium Matter Pod Small Laser Beam Rifle Autogun Plasma Cutter [Rating: 14] Favorites ----------- Power Light Ion Engine Engine Light Ion Engine Power Core Light Nuclear Core Propulsion Aluminum Leg Treads Light Treads Leg Aluminum Leg Utility ECM Suite Device ECM Suite Storage Cargo Storage Unit Weapon Light Assault Rifle Energy Gun Medium Laser Ballistic Gun Light Assault Rifle Launcher Grenade Launcher Special Weapon Plasma Cutter Build | -11 -10 -10 -9 -9 -8 ------- Run | Yrd Mat Min Mat Min Mat Slots Evolved 4 | . . . 2 . 2 Power 1 | . . . 1 . . Propulsion 2 | . . . . . 2 Utility 1 | . . . 1 . . Weapon . | . . . . . . Parts Attached 37 | 8 10 1 4 5 9 Power 9 | 2 2 1 1 2 1 Engine 8 | 2 1 1 1 2 1 Core 1 | . 1 . . . . Reactor . | . . . . . . Propulsion 13 | 2 3 . 1 3 4 Treads 2 | . . . 1 . 1 Leg 11 | 2 3 . . 3 3 Wheel . | . . . . . . Hover . | . . . . . . Flight . | . . . . . . Utility 5 | 2 2 . 1 . . Device 3 | 2 1 . . . . Storage 2 | . 1 . 1 . . Processor . | . . . . . . Hackware . | . . . . . . Protection . | . . . . . . Artifact . | . . . . . . Weapon 10 | 2 3 . 1 . 4 Energy Gun 4 | 1 1 . . . 2 Energy Cannon . | . . . . . . Ballistic Gun 4 | 1 1 . 1 . 1 Ballistic Cannon . | . . . . . . Launcher 1 | . 1 . . . . Special Weapon 1 | . . . . . 1 Impact Weapon . | . . . . . . Slashing Weapon . | . . . . . . Piercing Weapon . | . . . . . . Special Melee Weapon . | . . . . . . Unidentified Prototypes . | . . . . . . Parts Lost 22 | . 5 1 1 . 15 Power 5 | . . 1 1 . 3 Propulsion 6 | . . . . . 6 Utility 2 | . 2 . . . . Weapon 9 | . 3 . . . 6 Highest Loss Streak 5 | . 2 1 1 . 5 To Critical Strikes . | . . . . . . Average Backups 7 | . 3 6 7 9 7 Power . | . . . . . . Propulsion . | . . 1 1 1 . Utility 3 | . 1 3 3 4 4 Weapon 2 | . 1 1 2 3 1 Tool/Special . | . . . . . . Unused Backups 6 | . . . 2 . 4 Power . | . . . . . . Propulsion 1 | . . . 1 . . Utility 4 | . . . . . 4 Weapon 1 | . . . 1 . . Tool/Special . | . . . . . . Average Slot Usage (%) 77 | . 97 99 77 87 53 Engine 14 | . 12 11 11 21 12 Leg 19 | . 28 28 22 22 8 Device 11 | . 17 14 11 11 9 Storage 10 | . 8 14 11 11 9 Energy Gun 9 | . 5 14 11 11 7 Ballistic Gun 9 | . 15 14 11 11 4 Peak Build Rating 14 | 9 9 9 9 13 14 Average Rating 9 | 5 8 7 8 10 10 On Entrance 7 | . 9 9 7 9 13 Naked Turns . | . . . . . . Heaviest Build 157 | 11 21 18 148 157 157 Greatest Support 40 | 20 20 20 20 20 40 Greatest Overweight (x) 50 | . 1 . 14 15 50 Average Overweight (x) 3 | . . . 8 7 9 Largest Inventory Capacity 30 | 5 10 10 30 30 30 Average Capacity 25 | 5 8 10 27 30 30 Most Carried 11 | 2 7 7 10 11 10 Average Carried 7 | . 3 6 7 9 7 Final Capacity 30 | 5 10 10 30 30 30 Final Carried 9 | 2 5 7 9 9 5 Class Distribution -------------------- 77% | Hauler-Mutant 19% | Mutant Dominant Class ---------------- Mutant | -10/Materials Mutant | -10/Mines Hauler-Mutant | -9/Materials Hauler-Mutant | -9/Mines Hauler-Mutant | -8/Materials Resources | -11 -10 -10 -9 -9 -8 ----------- Run | Yrd Mat Min Mat Min Mat Matter Collected 893 | 301 225 11 99 86 171 Remotely . | . . . . . . Salvage Created 1007 | 50 235 59 99 124 440 Parts 53 | 4 12 7 9 5 16 Haulers Intercepted . | . . . . . . Recyclers Shooed 1 | . . . . . 1 Parts Field Recycled . | . . . . . . Retrieved Matter . | . . . . . . Parts Self-Destructed . | . . . . . . Prevented . | . . . . . . Kills | -11 -10 -10 -9 -9 -8 ------- Run | Yrd Mat Min Mat Min Mat Combat Hostiles Destroyed 26 | 1 7 3 4 3 8 Guns 23 | 1 5 3 4 3 7 AOE 2 | . 2 . . . . Classes Destroyed 4 | 1 1 1 1 . . Worker 2 | . 1 . . . 1 Swarmer 6 | . . 3 3 . . Grunt 18 | 1 7 . . 3 7 Sentry 2 | . . . 1 . 1 Best Kill Streak 4 | 1 2 4 2 3 4 Combat Bots Only 3 | 1 2 3 2 3 2 Max Kills in Single Turn 2 | 1 2 1 1 1 1 Gunslinging . | . . . . . . Exploded 2 | . 2 . . . . Melee . | . . . . . . Uniques/NPCs Destroyed . | . . . . . . Combat | -11 -10 -10 -9 -9 -8 -------- Run | Yrd Mat Min Mat Min Mat Hostile Shots Fired 291 | 8 75 10 24 20 154 Missed 82 | 2 20 2 11 9 38 Hits 209 | 6 55 8 13 11 116 Projectile 209 | 6 55 8 13 11 116 Critical Strikes 6 | . . . 1 . 5 Damage Taken 3009 | 69 712 64 147 150 1867 Core 758 | 24 137 . 7 40 550 Absorbed by Shields . | . . . . . . Core Remaining (%) 71 | 90 . 35 . 88 . Volleys Fired 142 | 8 49 6 13 8 58 Largest 2 | 1 2 1 1 2 2 Hottest 70 | 40 50 20 50 70 70 Shots Fired 172 | 8 52 6 13 16 77 Gun 162 | 8 47 6 13 16 72 Cannon . | . . . . . . Launcher 5 | . 5 . . . . Special 5 | . . . . . 5 Kinetic 95 | 7 37 6 2 8 35 Thermal 71 | . 10 . 11 8 42 Explosive 5 | . 5 . . . . Electromagnetic 1 | 1 . . . . . Robot Hit Streak 18 | 6 8 3 3 18 8 Robot Miss Streak 2 | 1 2 1 2 . 2 Penetration Max . | . . . . . . Secondary Targets 1 | . . . . 1 . Max Gunslinging Chain 1 | . . . . 1 . Shots Hit Robots 119 | 7 33 5 7 15 52 Core Hits 63 | 2 18 3 5 7 28 Critical Kills 1 | . . . . . 1 Critical Parts Destroyed 1 | . 1 . . . . Critical Strikes 7 | . 2 . . . 5 Burn 5 | . 1 . . . 4 Destroy 2 | . 1 . . . 1 Melee Attacks . | . . . . . . Impact . | . . . . . . Slashing . | . . . . . . Piercing . | . . . . . . Sneak Attacks . | . . . . . . Combat Hostiles . | . . . . . . Follow-up Attacks . | . . . . . . Damage Inflicted 1695 | 93 655 42 86 161 658 Guns 1388 | 93 377 42 86 161 629 Cannons . | . . . . . . Explosions 278 | . 278 . . . . Melee . | . . . . . . Ramming 6 | . . . . . 6 Kinetic 736 | 80 278 42 9 59 268 Thermal 662 | . 99 . 77 102 384 Explosive 278 | . 278 . . . . Electromagnetic 13 | 13 . . . . . Impact . | . . . . . . Slashing . | . . . . . . Piercing . | . . . . . . Highest Corruption . | . . . . . . Average Corruption . | . . . . . . Corruption Purged . | . . . . . . Corruption Blocked . | . . . . . . Overload Shots . | . . . . . . Overflow Damage . | . . . . . . Projectiles . | . . . . . . Explosions . | . . . . . . Melee . | . . . . . . Knockbacks . | . . . . . . Impact . | . . . . . . Kinetic . | . . . . . . Secondary . | . . . . . . Self-Inflicted Damage . | . . . . . . Shots . | . . . . . . Rammed 2 | . . . . . 2 Targets Rammed 2 | . . . . . 2 Kicked . | . . . . . . Crushed . | . . . . . . Highest Temperature 223 | 6 79 2 28 129 223 Average Temperature 50 | 6 24 2 12 79 66 Received Heat Transfer 1500 | 36 402 . 45 81 936 Effects 1 | . . . . . 1 Energy Bleed 1 | . . . . . 1 Siege Activations . | . . . . . . Martial Activations . | . . . . . . Shielding Activations . | . . . . . . Robots Disrupted . | . . . . . . Combat Hostiles . | . . . . . . Robots Corrupted . | . . . . . . Combat Hostiles . | . . . . . . Parts Fried . | . . . . . . Impact Corruptions . | . . . . . . Robots Melted 1 | . . . . . 1 Combat Hostiles 1 | . . . . . 1 Parts Melted 4 | . . . . 1 3 Heat Transferred 2257 | . 370 . 222 296 1369 Parts Sabotaged . | . . . . . . Parts Stolen . | . . . . . . Parts Stripped . | . . . . . . Power Chain Reactions . | . . . . . . Alert | -11 -10 -10 -9 -9 -8 ------- Run | Yrd Mat Min Mat Min Mat Maximum Alert Level . | . . . . . . Low Security (%) 100 | 100 100 100 100 100 100 Level 1 . | . . . . . . Level 2 . | . . . . . . Level 3 . | . . . . . . Level 4 . | . . . . . . Level 5 . | . . . . . . High Security . | . . . . . . Max Security . | . . . . . . Peak Influence 88 | 20 88 72 60 60 50 Initial 12 | . . 12 . . . Average 9 | 2 41 31 5 4 7 Influence Increases 678 | 20 223 70 100 70 195 Destroy 0b10 Robot/C 520 | 20 140 60 80 60 160 Destroy 0b10 Robot/NC 10 | . 5 . . . 5 Destroy Leader 100 | . 30 10 20 10 30 Disable Machine 15 | . 15 . . . . Destroy Structure 18 | . 18 . . . . Lose Combat Pursuer 15 | . 15 . . . . Influence Decreases 678 | 20 190 103 100 70 195 Entered New Map 21 | . . 21 . . . Time Decay 522 | 20 150 72 90 70 120 Lost Part 135 | . 40 10 10 . 75 Squads Dispatched 5 | . 2 . 1 1 1 Investigation 1 | . . . . 1 . Extermination . | . . . . . . Reinforcement 4 | . 2 . 1 . 1 Assault . | . . . . . . Garrison . | . . . . . . Intercept . | . . . . . . Searches Triggered . | . . . . . . Construction Impeded . | . . . . . . Haulers Reinforced . | . . . . . . Active Scanning Responses . | . . . . . . Cargo Convoy Interrupts . | . . . . . . Stealth | -11 -10 -10 -9 -9 -8 --------- Run | Yrd Mat Min Mat Min Mat Distress Signals 2 | . 2 . . . . Communications Jammed . | . . . . . . Distress Signals . | . . . . . . Times Spotted 48 | 1 11 3 7 4 22 Peak Tracking Total 5 | 1 4 3 3 3 5 Tactical Retreats 8 | . 1 . 2 . 5 Traps | -11 -10 -10 -9 -9 -8 ------- Run | Yrd Mat Min Mat Min Mat Traps Triggered . | . . . . . . Indirectly . | . . . . . . Trap Hack Attempts . | . . . . . . Triggered . | . . . . . . Disarmed . | . . . . . . Reprogrammed . | . . . . . . Reused . | . . . . . . Traps Extracted . | . . . . . . Installed . | . . . . . . Triggered . | . . . . . . Machines | -11 -10 -10 -9 -9 -8 ---------- Run | Yrd Mat Min Mat Min Mat Machines Disabled 1 | . 1 . . . . Max in Single Turn 1 | . 1 . . . . Machines Repaired . | . . . . . . Machines Dismantled . | . . . . . . Machines Sabotaged . | . . . . . . Overloaded Fab Kills . | . . . . . . Hacking | -11 -10 -10 -9 -9 -8 --------- Run | Yrd Mat Min Mat Min Mat Machines Accessed 2 | . . . 1 1 . Terminals 1 | . . . 1 . . Fabricators . | . . . . . . Repair Stations . | . . . . . . Recycling Units . | . . . . . . Scanalyzers . | . . . . . . Garrison Access . | . . . . . . Total Hacks 3 | . . . 2 1 . Successful 3 | . . . 2 1 . Failed . | . . . . . . Catastrophic . | . . . . . . Database Lockouts . | . . . . . . Manual . | . . . . . . Terminals 2 | . . . 2 . . Fabricators . | . . . . . . Repair Stations . | . . . . . . Recycling Units . | . . . . . . Scanalyzers . | . . . . . . Garrison Access . | . . . . . . Terminal Hacks 3 | . . . 2 1 . Record 2 | . . . 2 . . Open Door 1 | . . . . 1 . Fabricator Hacks . | . . . . . . Repair Station Hacks . | . . . . . . Recycling Unit Hacks . | . . . . . . Scanalyzer . | . . . . . . Garrison Access Hacks . | . . . . . . Unauthorized Hacks . | . . . . . . Terminals . | . . . . . . Fabricators . | . . . . . . Repair Stations . | . . . . . . Recycling Units . | . . . . . . Scanalyzers . | . . . . . . Garrison Access . | . . . . . . Data Cores Recovered . | . . . . . . Used . | . . . . . . Hacking Detections . | . . . . . . Full Trace Events . | . . . . . . Feedback Events . | . . . . . . Feedback Blocked . | . . . . . . Robot Schematics Acquired . | . . . . . . Robots Built . | . . . . . . Authchips . | . . . . . . Time . | . . . . . . Total Robot Build Rating . | . . . . . . Part Schematics Acquired . | . . . . . . Parts Built . | . . . . . . Authchips . | . . . . . . Time . | . . . . . . Total Part Build Rating . | . . . . . . Parts Repaired . | . . . . . . Time . | . . . . . . Parts Recycled . | . . . . . . Recycled Matter . | . . . . . . Retrieved Matter . | . . . . . . Retrieved Components . | . . . . . . Parts Scanalyzed . | . . . . . . Part Schematics Acquired . | . . . . . . Parts Damaged . | . . . . . . Bothacking | -11 -10 -10 -9 -9 -8 ------------ Run | Yrd Mat Min Mat Min Mat Used RIF Installer . | . . . . . . Robots Hacked . | . . . . . . Non-combat . | . . . . . . Combat . | . . . . . . Robot Hacks Applied . | . . . . . . Relay Couplers Released . | . . . . . . Fabnet Peak Effective % . | . . . . . . Robots Rewired . | . . . . . . Allies Hacked . | . . . . . . Hacks Repelled . | . . . . . . Allies | -11 -10 -10 -9 -9 -8 -------- Run | Yrd Mat Min Mat Min Mat Total Allies . | . . . . . . Largest Group . | . . . . . . Highest-Rated Group . | . . . . . . Highest-Rated Ally . | . . . . . . Total Orders . | . . . . . . Ally Attacks . | . . . . . . Total Damage . | . . . . . . Kills . | . . . . . . Allies Corrupted . | . . . . . . Allies Melted . | . . . . . . Intel | -11 -10 -10 -9 -9 -8 ------- Run | Yrd Mat Min Mat Min Mat Active Infowar (turns) 3505 | 74 342 174 1035 1064 816 Terrain 344 | 74 270 . . . . ECM 3201 | . 112 174 1035 1064 816 Robot Analysis Total . | . . . . . . Derelict Logs Recovered 2 | . . 1 . 1 . Drone Launches . | . . . . . . Drone Recoveries . | . . . . . . Exploration | -11 -10 -10 -9 -9 -8 ------------- Run | Yrd Mat Min Mat Min Mat Turns Passed 3620 | 188 343 174 1035 1064 816 Spaces Moved 840 | 139 169 133 142 166 91 Core 25 | 18 . . . . 7 Treads 39 | . . . . . 39 Legs 776 | 121 169 133 142 166 45 Wheels . | . . . . . . Hover . | . . . . . . Flight . | . . . . . . Fastest Speed 50 | 50 120 120 120 610 330 Average Speed 384 | 110 127 120 703 622 730 Slowest Speed 2550 | 120 190 120 1100 1170 2550 Overloaded Moves . | . . . . . . Propulsion Burnouts . | . . . . . . Robots Hopped . | . . . . . . Potential Cave-ins . | . . . . . . Cave-ins Triggered . | . . . . . . Exploration Rate (%) 26 | 7 37 45 11 43 14 Regions Visited 5 Branch Regions 2 Pre-discovered Areas . | . . . . . . Known Exits Taken . | . . . . . . Unknown Exits Taken 5 | 1 1 1 1 1 . Scrap Searched . | . . . . . . Spaces Dug . | . . . . . . Terrain Destroyed 20 | . 20 . . . . Melee . | . . . . . . Projectile . | . . . . . . AOE 20 | . 20 . . . . Terrain Rammed . | . . . . . . Walls Destroyed . | . . . . . . Machines Disabled . | . . . . . . Actions | -11 -10 -10 -9 -9 -8 --------- Run | Yrd Mat Min Mat Min Mat Total 1085 | 165 246 142 177 187 168 Wait 2 | . 2 . . . . Move 835 | 138 168 132 141 165 91 Hop . | . . . . . . Pick Up 46 | 10 12 3 10 5 6 Fast Attach . | . . . . . . Attach 27 | 7 5 1 3 1 10 Detach . | . . . . . . Swap 14 | 1 6 . 3 4 . Drop 17 | 1 4 . 7 4 1 Fire 142 | 8 49 6 13 8 58 Melee . | . . . . . . Ram . | . . . . . . Kick . | . . . . . . Crush 2 | . . . . . 2 Escape Stasis . | . . . . . . Rewire . | . . . . . . Trap . | . . . . . . Miscellaneous . | . . . . . . Route ------- -11/Scrapyard -10/Materials -10/Mines -9/Materials -9/Mines -8/Materials History --------- Turn | Location | Event 2 | -11/Scrapyard | Met Revision 17 68 | -11/Scrapyard | Discovered new exit (range 8) 189 | -11/Scrapyard | Entered Materials 307 | -10/Materials | Build established: Mutant 439 | -10/Materials | Core integrity fell below 50% 514 | -10/Materials | Discovered new exit (range 10) 532 | -10/Materials | Entered Mines 566 | -10/Mines | Learned Materials garrison access intel 685 | -10/Mines | Discovered new exit (range 13) 692 | -10/Mines | Assembled infested the area 706 | -10/Mines | Entered Materials 706 | -9/Materials | Evolved 2 slots: Power x1, Utility x1 797 | -9/Materials | Discovered new exit (range 13) 1110 | -9/Materials | Build established: Hauler-Mutant 1741 | -9/Materials | Entered Mines 1872 | -9/Mines | Learned Materials garrison access intel 2513 | -9/Mines | Discovered new exit (range 15) 2666 | -9/Mines | Met a Derelict shopkeep closing up shop 2805 | -9/Mines | Entered Materials 2805 | -8/Materials | Evolved 2 slots: Propulsion x2 2806 | -8/Materials | Loaded intel: 1 garrison access location 3149 | -8/Materials | Lost 5 parts (3n2w) 3325 | -8/Materials | Core integrity fell below 50% 3604 | -8/Materials | Core integrity fell below 20% 3621 | -8/Materials | Destroyed by Y-45 Defender with Beam Rifle Last Messages --------------- K-01 Serf destroyed. K-01 Serf collects debris. K-01 Serf destroyed. K-01 Serf collects debris. Acquired Hardlight Generator. K-01 Serf cleans the Nuclear Reactor. Critical hit (Burn: +37). Beam Rifle destroyed. K-01 Serf cleans the Nuclear Reactor. Critical hit (Burn: +37). Plasma Cutter destroyed. K-01 Serf cleans the Nuclear Reactor. Slammed into Y-45 Defender. Ramming works as a last resort when unarmed or blocked, but can have serious negative consequences. Hyb. Deuterium Engine destroyed. K-01 Serf cleans the Nuclear Reactor. Slammed into Y-45 Defender. Lgt. Treads destroyed. Map ----- +----------------------------------------------------+ | ???????????? #???????? | | ???????????? #???????? | | ????????????? #####???????? | | ?????????????" """ """ # #?????????? | | ?????????????????"" """ ###?????????? | | ?????????????????"" """ [ ##??????????? | | ???????????????? =%[=# #?????????? | | ???????????????? *%=*# #?????????? | | ???????????????? =% %###?????????? | | ??????????????????"## =%%####??????????? | | ????????????????????#############%####??????????? | | ????????????????????????#########%##????????????? | | ???????????????????????? #%#?????????????? | | ???????????????????????# """ "" # #????? ??????? | | ???????????????????????# """ T" # ##??R" #??? | | ???????????????????????# """ "" # # " " #??? | | ???????????????????????# # + """????? | | ???????????????????????# """ + # """????? | | ???????????????????????# """ # #???? """????? | | ???????????????????????# """ # #????????????? | | ???????????????????????# + #????????????? | | ????????????????################# #????????????? | | ????????????????# #??????# #????????????? | | ????????????????#" """ ######?# #????????????? | | ????????????????#" """ Y# ! ### #????????????? | | ????????????????#" """ %@ a #????????????? | | ????????????????#T # r + ??????? | | ????????????????#" """ # ### ## !???????? | | ????????????????#" """ !## ##?# #? ??????????? | | ????????????????#" """ ## #??# #??!??????????? | | ????????????????# ## #??# #??##?????????? | | ????????????????####+######*%#??#+#?????????????? | | ?????????????????? ?????#%=#??????????????????? | | ????????????????? T?????? =!#??????????????????? | | ????????????????## ??????? #??????????????????? | | ?????????????????#???????## #??????????????????? | | ??????????????????????????# #??????????????????? | | ??????????????????????????# #??????????????????? | | ?????????????????"""?????? !??????????????????? | | ?????????????????"G"?????? ??????????????????? | | ?????????????????"?"?????? / ??????????????????? | | ?????????????????????????? ??????????????????? | | ????????????????????????????????????????????????? | | ????????????????????????????????????????????????? | | ????????????????????????????????????????????????? | | ????????????????????????????????????????????????? | | ????????????????????????????????????????????????? | | ????????????????????????????????????????????????? | | ????????????????????????????????????????????????? | | ????????????????????????????????????????????????? | +----------------------------------------------------+ Best States ------------- Heat Dissipation 35 Energy Generation 15 Energy Capacity 950 Matter Stores 300 Matter Capacity 300 Sight Range 16 Terrain Scan Range 16 Terrain Scan Density 10 ECM Strength 1 Evasion (%) 55 Recoil Reduction 2 Item Schematics ----------------- None Robot Schematics ------------------ None Fabricated ------------ Nothing Repaired ---------- Nothing Alien Tech Used ----------------- None Achievements -------------- It's Just You Tank Challenges ------------ None Game ------ Seed AccelerationControlPurifier Manual? 0 Play Time 00:37:18 Cumulative 1.3 hours Start 2025.06.06 @ 18:30:33 End 2025.06.21 @ 12:41:42 Sessions 1 Manual Loads 0 Difficulty Rogue Special Mode None Game No. 2 Rogue 2 Adventurer 0 Explorer 0 Win Type - Total 0 Types 0/0/0/0/0/0/0/0/0/0 Lore% 0 Gallery% 2 Achievement% 3 Wizard Run 0 Options --------- Layout 1 ASCII 0 Keyboard 0 Movement Mouse Keybinds 0 Fullscreen 1 Font 24/Smallcaps Map View 50x35 Zoom Use 0% Tactical HUD 0 Map Filters NONE Filters NONE Steam 1 RUN: 2616b347-35d9-4445-a957-a00464183e3d